[Event "Titled Tuesday Blitz July 4 Early 2023"]
[White "Keleberda, Tymur"]
[Black "Castillo Sevilla, Ian Eiffel"]
[WhiteFideId "14174294"]
[BlackFideId "6104207"]
[WhiteElo "2499"]
[BlackElo "2316"]
[Result "0-1"]
[Round "6"]
[TimeControl "180+2"]
[Date "2023.07.04"]
[WhiteClock "0:00:19"]
[BlackClock "0:00:07"]
[Board "152"]

1. e4 {[%clk 0:03:00]}  c5 {[%clk 0:02:59]} 2. Nf3 {[%clk 0:03:00]}  g6 {[%clk 0:03:00]} 3. d4 {[%clk 0:02:59]}  cxd4 {[%clk 0:03:01]} 4. Qxd4 {[%clk 0:02:59]}  Nf6 {[%clk 0:03:00]} 5. e5 {[%clk 0:02:59]}  Nc6 {[%clk 0:03:00]} 6. Qh4 {[%clk 0:02:58]}  Nxe5 {[%clk 0:02:58]} 7. Nxe5 {[%clk 0:02:56]}  Qa5+ {[%clk 0:02:58]} 8. Nd2 {[%clk 0:02:56]}  Qxe5+ {[%clk 0:02:58]} 9. Be2 {[%clk 0:02:57]}  Bg7 {[%clk 0:02:57]} 10. Nf3 {[%clk 0:02:57]}  Qc7 {[%clk 0:02:56]} 11. O-O {[%clk 0:02:55]}  O-O {[%clk 0:02:50]} 12. Bd3 {[%clk 0:02:55]}  d6 {[%clk 0:02:39]} 13. Bh6 {[%clk 0:02:53]}  Bg4 {[%clk 0:02:38]} 14. Bxg7 {[%clk 0:02:53]}  Kxg7 {[%clk 0:02:38]} 15. Qg3 {[%clk 0:02:50]}  Bxf3 {[%clk 0:02:35]} 16. Qxf3 {[%clk 0:02:50]}  Nd7 {[%clk 0:02:24]} 17. Qe2 {[%clk 0:02:27]}  Ne5 {[%clk 0:02:21]} 18. Be4 {[%clk 0:02:27]}  Rac8 {[%clk 0:02:16]} 19. f4 {[%clk 0:02:21]}  Nd7 {[%clk 0:02:06]} 20. b3 {[%clk 0:02:19]}  Nf6 {[%clk 0:02:04]} 21. Bd3 {[%clk 0:02:19]}  Qc5+ {[%clk 0:01:51]} 22. Kh1 {[%clk 0:02:18]}  Rc7 {[%clk 0:01:51]} 23. c4 {[%clk 0:02:17]}  a6 {[%clk 0:01:50]} 24. Rad1 {[%clk 0:02:16]}  Rb8 {[%clk 0:01:46]} 25. f5 {[%clk 0:02:13]}  b5 {[%clk 0:01:44]} 26. cxb5 {[%clk 0:02:12]}  axb5 {[%clk 0:01:45]} 27. Qd2 {[%clk 0:02:08]}  Qc3 {[%clk 0:01:27]} 28. Qg5 {[%clk 0:02:07]}  Rc5 {[%clk 0:01:23]} 29. Qe3 {[%clk 0:01:59]}  Re5 {[%clk 0:01:20]} 30. Qf2 {[%clk 0:01:52]}  Qc5 {[%clk 0:00:56]} 31. Qg3 {[%clk 0:01:49]}  Ra8 {[%clk 0:00:52]} 32. fxg6 {[%clk 0:01:48]}  hxg6 {[%clk 0:00:53]} 33. Rf2 {[%clk 0:01:40]}  Rg5 {[%clk 0:00:43]} 34. Qf3 {[%clk 0:01:39]}  Rh8 {[%clk 0:00:36]} 35. Rdf1 {[%clk 0:01:35]}  Qe5 {[%clk 0:00:31]} 36. h3 {[%clk 0:01:23]}  Rg3 {[%clk 0:00:31]} 37. Qb7 {[%clk 0:01:24]}  Rxd3 {[%clk 0:00:26]} 38. a4 {[%clk 0:01:22]}  bxa4 {[%clk 0:00:22]} 39. bxa4 {[%clk 0:01:23]}  Ra3 {[%clk 0:00:20]} 40. Qc6 {[%clk 0:01:20]}  Rh4 {[%clk 0:00:16]} 41. a5 {[%clk 0:01:11]}  Rxa5 {[%clk 0:00:14]} 42. Qb7 {[%clk 0:01:06]}  Ra1 {[%clk 0:00:14]} 43. Rf3 {[%clk 0:01:03]}  Rha4 {[%clk 0:00:11]} 44. Qc7 {[%clk 0:00:21]}  Rxf1+ {[%clk 0:00:09]} 45. Rxf1 {[%clk 0:00:22]}  Ra1 {[%clk 0:00:09]} 46. Rxa1 {[%clk 0:00:22]}  Qxa1+ {[%clk 0:00:09]} 47. Kh2 {[%clk 0:00:23]}  Qe5+ {[%clk 0:00:10]} 48. Kg1 {[%clk 0:00:23]}  Ne4 {[%clk 0:00:09]} 49. Qb8 {[%clk 0:00:23]}  Qd4+ {[%clk 0:00:09]} 50. Kh2 {[%clk 0:00:23]}  Qe5+ {[%clk 0:00:09]} 51. Kg1 {[%clk 0:00:24]}  g5 {[%clk 0:00:09]} 52. Qc7 {[%clk 0:00:23]}  f6 {[%clk 0:00:09]} 53. Qb8 {[%clk 0:00:23]}  d5 {[%clk 0:00:09]} 54. Qd8 {[%clk 0:00:20]}  d4 {[%clk 0:00:08]} 55. Kf1 {[%clk 0:00:20]}  Ng3+ {[%clk 0:00:07]} 56. Kf2 {[%clk 0:00:19]}  Qe3# {[%clk 0:00:07]} 0-1


[Site "https://www.chess.com"]

[Event "Titled Tuesday Blitz July 4 Early 2023"]
[White "Herzog2012"]
[Black "Osinovsky, Stepan"]
[BlackFideId "4157354"]
[WhiteElo "2490"]
[BlackElo "2295"]
[Result "0-1"]
[Round "6"]
[TimeControl "180+2"]
[Date "2023.07.04"]
[WhiteClock "0:00:00"]
[BlackClock "0:00:11"]
[Board "154"]

1. e4 {[%clk 0:03:00]}  e6 {[%clk 0:02:59]} 2. Nf3 {[%clk 0:03:00]}  d5 {[%clk 0:02:59]} 3. e5 {[%clk 0:03:01]}  Nc6 {[%clk 0:02:57]} 4. d4 {[%clk 0:02:54]}  Nge7 {[%clk 0:02:57]} 5. Bd3 {[%clk 0:02:16]}  Nf5 {[%clk 0:02:50]} 6. c3 {[%clk 0:02:14]}  b6 {[%clk 0:02:43]} 7. O-O {[%clk 0:01:57]}  Nh4 {[%clk 0:02:33]} 8. Nxh4 {[%clk 0:01:53]}  Qxh4 {[%clk 0:02:33]} 9. f4 {[%clk 0:01:54]}  g6 {[%clk 0:02:21]} 10. g3 {[%clk 0:01:45]}  Qh3 {[%clk 0:01:49]} 11. Be2 {[%clk 0:01:42]}  h5 {[%clk 0:01:46]} 12. Bf3 {[%clk 0:01:28]}  Ne7 {[%clk 0:01:43]} 13. Bg2 {[%clk 0:01:12]}  Qg4 {[%clk 0:01:43]} 14. Qxg4 {[%clk 0:01:06]}  hxg4 {[%clk 0:01:44]} 15. Na3 {[%clk 0:01:05]}  Ba6 {[%clk 0:01:40]} 16. Re1 {[%clk 0:01:00]}  Nf5 {[%clk 0:01:39]} 17. Nc2 {[%clk 0:00:59]}  c5 {[%clk 0:01:39]} 18. Ne3 {[%clk 0:00:51]}  cxd4 {[%clk 0:00:55]} 19. Nxf5 {[%clk 0:00:29]}  gxf5 {[%clk 0:00:56]} 20. cxd4 {[%clk 0:00:29]}  Bb4 {[%clk 0:00:52]} 21. Re3 {[%clk 0:00:28]}  Rc8 {[%clk 0:00:47]} 22. a3 {[%clk 0:00:25]}  Be7 {[%clk 0:00:45]} 23. Bd2 {[%clk 0:00:22]}  Rc2 {[%clk 0:00:40]} 24. Bc3 {[%clk 0:00:22]}  Kd7 {[%clk 0:00:35]} 25. Rd1 {[%clk 0:00:21]}  Rc8 {[%clk 0:00:24]} 26. Rd2 {[%clk 0:00:07]}  Rc1+ {[%clk 0:00:19]} 27. Kf2 {[%clk 0:00:04]}  Bxa3 {[%clk 0:00:19]} 28. Re1 {[%clk 0:00:02]}  Rxe1 {[%clk 0:00:18]} 29. Kxe1 {[%clk 0:00:03]}  Be7 {[%clk 0:00:17]} 30. h3 {[%clk 0:00:04]}  gxh3 {[%clk 0:00:17]} 31. Bxh3 {[%clk 0:00:05]}  Bc4 {[%clk 0:00:17]} 32. g4 {[%clk 0:00:04]}  Rh8 {[%clk 0:00:17]} 33. Bg2 {[%clk 0:00:02]}  fxg4 {[%clk 0:00:17]} 34. Kf2 {[%clk 0:00:02]}  Bh4+ {[%clk 0:00:16]} 35. Ke3 {[%clk 0:00:03]}  Bg3 {[%clk 0:00:16]} 36. Rd1 {[%clk 0:00:02]}  Rh2 {[%clk 0:00:15]} 37. Rg1 {[%clk 0:00:03]}  a5 {[%clk 0:00:15]} 38. Bd2 {[%clk 0:00:01]}  Kc6 {[%clk 0:00:14]} 39. Bc3 {[%clk 0:00:02]}  Kb5 {[%clk 0:00:13]} 40. Bf1 {[%clk 0:00:00]}  Bf2+ {[%clk 0:00:11]} 0-1


[Site "https://www.chess.com"]

[Event "Titled Tuesday Blitz July 4 Early 2023"]
[White "Mica, Marek"]
[Black "Nakhbayeva, Guliskhan"]
[WhiteFideId "382884"]
[BlackFideId "13704788"]
[WhiteElo "2487"]
[BlackElo "2230"]
[Result "1/2-1/2"]
[Round "6"]
[TimeControl "180+2"]
[Date "2023.07.04"]
[WhiteClock "0:01:01"]
[BlackClock "0:00:02"]
[Board "157"]

1. d4 {[%clk 0:03:00]}  e6 {[%clk 0:03:00]} 2. c4 {[%clk 0:03:01]}  d5 {[%clk 0:02:59]} 3. Nf3 {[%clk 0:03:01]}  a6 {[%clk 0:02:59]} 4. Bg5 {[%clk 0:02:57]}  Be7 {[%clk 0:02:58]} 5. Bxe7 {[%clk 0:02:58]}  Qxe7 {[%clk 0:02:58]} 6. g3 {[%clk 0:02:58]}  Qb4+ {[%clk 0:02:56]} 7. Nbd2 {[%clk 0:02:58]}  dxc4 {[%clk 0:02:51]} 8. Qc2 {[%clk 0:02:58]}  b5 {[%clk 0:02:48]} 9. Bg2 {[%clk 0:02:58]}  Bb7 {[%clk 0:02:49]} 10. O-O {[%clk 0:02:58]}  Nd7 {[%clk 0:02:48]} 11. a4 {[%clk 0:02:49]}  Ngf6 {[%clk 0:02:37]} 12. axb5 {[%clk 0:02:49]}  axb5 {[%clk 0:02:37]} 13. Rxa8+ {[%clk 0:02:50]}  Bxa8 {[%clk 0:02:37]} 14. b3 {[%clk 0:02:49]}  cxb3 {[%clk 0:02:13]} 15. Qxb3 {[%clk 0:02:48]}  Qxb3 {[%clk 0:02:12]} 16. Nxb3 {[%clk 0:02:49]}  O-O {[%clk 0:02:11]} 17. Rc1 {[%clk 0:02:49]}  Bd5 {[%clk 0:02:00]} 18. Nfd2 {[%clk 0:02:42]}  Bxg2 {[%clk 0:01:50]} 19. Kxg2 {[%clk 0:02:42]}  Rc8 {[%clk 0:01:51]} 20. Rc6 {[%clk 0:02:39]}  Nb8 {[%clk 0:01:45]} 21. Rc5 {[%clk 0:02:38]}  c6 {[%clk 0:01:43]} 22. Na5 {[%clk 0:02:33]}  Nfd7 {[%clk 0:01:43]} 23. Rc2 {[%clk 0:02:33]}  Kf8 {[%clk 0:01:39]} 24. Ndb3 {[%clk 0:02:32]}  Ke7 {[%clk 0:01:38]} 25. f4 {[%clk 0:02:31]}  Kd6 {[%clk 0:01:31]} 26. e4 {[%clk 0:02:31]}  Na6 {[%clk 0:01:24]} 27. Kf3 {[%clk 0:02:25]}  Nb6 {[%clk 0:01:01]} 28. Ke3 {[%clk 0:02:16]}  Kd7 {[%clk 0:00:50]} 29. Rc1 {[%clk 0:02:03]}  Na4 {[%clk 0:00:47]} 30. Nb7 {[%clk 0:01:49]}  Kc7 {[%clk 0:00:43]} 31. N7a5 {[%clk 0:01:42]}  Kb6 {[%clk 0:00:40]} 32. Rf1 {[%clk 0:01:32]}  c5 {[%clk 0:00:33]} 33. dxc5+ {[%clk 0:01:31]}  N4xc5 {[%clk 0:00:30]} 34. Rc1 {[%clk 0:01:13]}  Rc7 {[%clk 0:00:15]} 35. Rb1 {[%clk 0:01:05]}  Nxb3 {[%clk 0:00:12]} 36. Nxb3 {[%clk 0:01:06]}  b4 {[%clk 0:00:10]} 37. Nd4 {[%clk 0:01:05]}  Rc3+ {[%clk 0:00:05]} 38. Kd2 {[%clk 0:01:05]}  Kc5 {[%clk 0:00:04]} 39. Nc2 {[%clk 0:01:02]}  Rc4 {[%clk 0:00:03]} 40. Kd3 {[%clk 0:01:02]}  Rc3+ {[%clk 0:00:03]} 41. Kd2 {[%clk 0:01:02]}  Rf3 {[%clk 0:00:03]} 42. Ke2 {[%clk 0:01:01]}  Rc3 {[%clk 0:00:02]} 43. Kd2 {[%clk 0:01:01]} 1/2-1/2


[Site "https://www.chess.com"]

[Event "Titled Tuesday Blitz July 4 Early 2023"]
[White "Reprintsev, Alexander"]
[Black "VoicelessFeather"]
[WhiteFideId "14100541"]
[WhiteElo "2479"]
[BlackElo "2220"]
[Result "1-0"]
[Round "6"]
[TimeControl "180+2"]
[Date "2023.07.04"]
[WhiteClock "0:00:49"]
[BlackClock "0:00:00"]
[Board "158"]

1. e4 {[%clk 0:02:59]}  e5 {[%clk 0:03:00]} 2. Nf3 {[%clk 0:02:58]}  Nc6 {[%clk 0:02:58]} 3. Bc4 {[%clk 0:02:58]}  Bc5 {[%clk 0:02:57]} 4. b4 {[%clk 0:02:56]}  Bxb4 {[%clk 0:02:57]} 5. c3 {[%clk 0:02:57]}  Be7 {[%clk 0:02:57]} 6. d4 {[%clk 0:02:56]}  Na5 {[%clk 0:02:58]} 7. Be2 {[%clk 0:02:56]}  d6 {[%clk 0:02:57]} 8. dxe5 {[%clk 0:02:54]}  dxe5 {[%clk 0:02:57]} 9. Qxd8+ {[%clk 0:02:54]}  Bxd8 {[%clk 0:02:57]} 10. Nxe5 {[%clk 0:02:54]}  Nf6 {[%clk 0:02:54]} 11. f3 {[%clk 0:02:52]}  O-O {[%clk 0:02:50]} 12. c4 {[%clk 0:02:50]}  Re8 {[%clk 0:02:42]} 13. Bb2 {[%clk 0:02:50]}  b6 {[%clk 0:02:26]} 14. Nd2 {[%clk 0:02:48]}  Be7 {[%clk 0:02:19]} 15. Nb3 {[%clk 0:02:45]}  Bb4+ {[%clk 0:02:11]} 16. Kf2 {[%clk 0:02:44]}  Nxb3 {[%clk 0:01:58]} 17. axb3 {[%clk 0:02:44]}  Bb7 {[%clk 0:01:58]} 18. Rhd1 {[%clk 0:02:42]}  Bxe4 {[%clk 0:01:24]} 19. fxe4 {[%clk 0:02:38]}  Nxe4+ {[%clk 0:01:23]} 20. Ke3 {[%clk 0:02:18]}  Nc3 {[%clk 0:01:19]} 21. Kd3 {[%clk 0:01:30]}  Rad8+ {[%clk 0:01:10]} 22. Kc2 {[%clk 0:01:30]}  Nxe2 {[%clk 0:00:58]} 23. Nc6 {[%clk 0:01:26]}  Rxd1 {[%clk 0:00:50]} 24. Kxd1 {[%clk 0:01:26]}  Nc3+ {[%clk 0:00:44]} 25. Bxc3 {[%clk 0:01:26]}  Bxc3 {[%clk 0:00:43]} 26. Rxa7 {[%clk 0:01:25]}  h5 {[%clk 0:00:32]} 27. Rxc7 {[%clk 0:01:23]}  Re1+ {[%clk 0:00:17]} 28. Kc2 {[%clk 0:01:23]}  Bf6 {[%clk 0:00:17]} 29. Rb7 {[%clk 0:01:09]}  Re2+ {[%clk 0:00:17]} 30. Kd3 {[%clk 0:01:10]}  Rxg2 {[%clk 0:00:17]} 31. Rxb6 {[%clk 0:01:10]}  Rxh2 {[%clk 0:00:17]} 32. b4 {[%clk 0:01:10]}  Rb2 {[%clk 0:00:16]} 33. b5 {[%clk 0:01:09]}  h4 {[%clk 0:00:15]} 34. Ra6 {[%clk 0:01:08]}  h3 {[%clk 0:00:13]} 35. Nd4 {[%clk 0:01:04]}  Rb1 {[%clk 0:00:09]} 36. Nf3 {[%clk 0:00:55]}  Rb3+ {[%clk 0:00:05]} 37. Ke4 {[%clk 0:00:53]}  Rc3 {[%clk 0:00:00]} 38. Rc6 {[%clk 0:00:49]} 1-0


[Site "https://www.chess.com"]

[Event "Titled Tuesday Blitz July 4 Early 2023"]
[White "Schachpanda_Youtube"]
[Black "Balla, Tamas-Kristof"]
[BlackFideId "1208497"]
[WhiteElo "2204"]
[BlackElo "2469"]
[Result "0-1"]
[Round "6"]
[TimeControl "180+2"]
[Date "2023.07.04"]
[WhiteClock "0:00:04"]
[BlackClock "0:01:22"]
[Board "160"]

1. e4 {[%clk 0:03:00]}  c5 {[%clk 0:03:00]} 2. d4 {[%clk 0:03:00]}  cxd4 {[%clk 0:03:00]} 3. c3 {[%clk 0:03:01]}  Nf6 {[%clk 0:03:00]} 4. e5 {[%clk 0:03:01]}  Nd5 {[%clk 0:03:00]} 5. Qxd4 {[%clk 0:03:01]}  e6 {[%clk 0:02:58]} 6. Nf3 {[%clk 0:03:01]}  Nc6 {[%clk 0:02:58]} 7. Qe4 {[%clk 0:03:02]}  d6 {[%clk 0:02:55]} 8. Bb5 {[%clk 0:03:01]}  Be7 {[%clk 0:02:49]} 9. c4 {[%clk 0:02:57]}  Nb6 {[%clk 0:02:42]} 10. Bxc6+ {[%clk 0:02:53]}  bxc6 {[%clk 0:02:43]} 11. Qxc6+ {[%clk 0:02:54]}  Bd7 {[%clk 0:02:43]} 12. Qe4 {[%clk 0:02:52]}  Rc8 {[%clk 0:02:36]} 13. exd6 {[%clk 0:02:40]}  Rxc4 {[%clk 0:02:27]} 14. Qe3 {[%clk 0:02:18]}  Bxd6 {[%clk 0:02:24]} 15. O-O {[%clk 0:02:15]}  O-O {[%clk 0:02:24]} 16. b3 {[%clk 0:02:11]}  Rg4 {[%clk 0:02:04]} 17. Bb2 {[%clk 0:01:58]}  Nd5 {[%clk 0:02:03]} 18. Qd2 {[%clk 0:01:40]}  Bc6 {[%clk 0:01:57]} 19. g3 {[%clk 0:01:31]}  Nf4 {[%clk 0:01:49]} 20. Qe3 {[%clk 0:01:02]}  Bc5 {[%clk 0:01:42]} 21. Qxc5 {[%clk 0:00:32]}  Bxf3 {[%clk 0:01:39]} 22. h3 {[%clk 0:00:22]}  Qh4 {[%clk 0:01:24]} 23. Nd2 {[%clk 0:00:05]}  Rxg3+ {[%clk 0:01:22]} 24. fxg3 {[%clk 0:00:04]}  Qxg3# {[%clk 0:01:22]} 0-1


[Site "https://www.chess.com"]

[Event "Titled Tuesday Blitz July 4 Early 2023"]
[White "Garcia Almaguer, Juan Manuel"]
[Black "Sanchez, Robert"]
[WhiteFideId "5110491"]
[BlackFideId "2034360"]
[WhiteElo "2465"]
[BlackElo "2155"]
[Result "0-1"]
[Round "6"]
[TimeControl "180+2"]
[Date "2023.07.04"]
[WhiteClock "0:00:12"]
[BlackClock "0:00:17"]
[Board "162"]

1. e4 {[%clk 0:03:00]}  e6 {[%clk 0:02:57]} 2. d4 {[%clk 0:02:56]}  d5 {[%clk 0:02:57]} 3. Nd2 {[%clk 0:02:54]}  Nf6 {[%clk 0:02:56]} 4. e5 {[%clk 0:02:54]}  Nfd7 {[%clk 0:02:57]} 5. c3 {[%clk 0:02:54]}  c5 {[%clk 0:02:57]} 6. f4 {[%clk 0:02:55]}  Nc6 {[%clk 0:02:56]} 7. Ndf3 {[%clk 0:02:54]}  a5 {[%clk 0:02:57]} 8. Bb5 {[%clk 0:02:53]}  cxd4 {[%clk 0:02:55]} 9. cxd4 {[%clk 0:02:51]}  Qb6 {[%clk 0:02:55]} 10. a4 {[%clk 0:02:48]}  Bb4+ {[%clk 0:02:54]} 11. Bd2 {[%clk 0:02:29]}  Nxd4 {[%clk 0:02:53]} 12. Bxb4 {[%clk 0:02:18]}  Nxf3+ {[%clk 0:02:44]} 13. Nxf3 {[%clk 0:02:11]}  axb4 {[%clk 0:02:45]} 14. Qd2 {[%clk 0:02:12]}  O-O {[%clk 0:02:43]} 15. Qxb4 {[%clk 0:02:04]}  Qe3+ {[%clk 0:02:27]} 16. Be2 {[%clk 0:02:03]}  Nc5 {[%clk 0:02:20]} 17. Ra3 {[%clk 0:01:59]}  Qc1+ {[%clk 0:02:10]} 18. Bd1 {[%clk 0:01:24]}  Rxa4 {[%clk 0:02:08]} 19. Qd2 {[%clk 0:01:20]}  Re4+ {[%clk 0:02:05]} 20. Kf2 {[%clk 0:01:18]}  Qxd2+ {[%clk 0:02:04]} 21. Nxd2 {[%clk 0:01:19]}  Rxf4+ {[%clk 0:02:04]} 22. Ke3 {[%clk 0:01:18]}  g5 {[%clk 0:01:58]} 23. g3 {[%clk 0:01:15]}  Rb4 {[%clk 0:01:52]} 24. Nf3 {[%clk 0:01:08]}  g4 {[%clk 0:01:21]} 25. Nd2 {[%clk 0:01:04]}  f5 {[%clk 0:01:04]} 26. Rf1 {[%clk 0:00:59]}  Rxb2 {[%clk 0:01:00]} 27. Rf4 {[%clk 0:00:55]}  Rd8 {[%clk 0:00:48]} 28. Rd4 {[%clk 0:00:54]}  Bd7 {[%clk 0:00:32]} 29. h3 {[%clk 0:00:47]}  h5 {[%clk 0:00:31]} 30. h4 {[%clk 0:00:40]}  Ne4 {[%clk 0:00:29]} 31. Nxe4 {[%clk 0:00:39]}  fxe4 {[%clk 0:00:30]} 32. Kf4 {[%clk 0:00:37]}  Kg7 {[%clk 0:00:27]} 33. Kg5 {[%clk 0:00:36]}  Be8 {[%clk 0:00:20]} 34. Ba4 {[%clk 0:00:12]}  Rf2 {[%clk 0:00:17]} 0-1


[Site "https://www.chess.com"]

[Event "Titled Tuesday Blitz July 4 Early 2023"]
[White "Floresvillar Gonzalez, Luis Migu"]
[Black "Toncheva, Nadya"]
[WhiteFideId "5100542"]
[BlackFideId "2924056"]
[WhiteElo "2089"]
[BlackElo "2462"]
[Result "1-0"]
[Round "6"]
[TimeControl "180+2"]
[Date "2023.07.04"]
[WhiteClock "0:00:22"]
[BlackClock "0:00:16"]
[Board "164"]

1. d4 {[%clk 0:03:00]}  d5 {[%clk 0:02:59]} 2. c3 {[%clk 0:02:56]}  c5 {[%clk 0:02:57]} 3. Nf3 {[%clk 0:02:54]}  Nf6 {[%clk 0:02:56]} 4. Bf4 {[%clk 0:02:53]}  Nc6 {[%clk 0:02:56]} 5. e3 {[%clk 0:02:52]}  Qb6 {[%clk 0:02:52]} 6. Qb3 {[%clk 0:02:44]}  c4 {[%clk 0:02:52]} 7. Qxb6 {[%clk 0:02:44]}  axb6 {[%clk 0:02:53]} 8. Nbd2 {[%clk 0:02:42]}  b5 {[%clk 0:02:52]} 9. a3 {[%clk 0:02:41]}  b4 {[%clk 0:02:46]} 10. cxb4 {[%clk 0:02:41]}  Nxb4 {[%clk 0:02:47]} 11. Rc1 {[%clk 0:02:39]}  Nc6 {[%clk 0:02:46]} 12. Ne5 {[%clk 0:02:30]}  Nxe5 {[%clk 0:02:43]} 13. Bxe5 {[%clk 0:02:29]}  Bf5 {[%clk 0:02:38]} 14. Bxf6 {[%clk 0:02:23]}  gxf6 {[%clk 0:02:39]} 15. e4 {[%clk 0:02:17]}  dxe4 {[%clk 0:02:34]} 16. Bxc4 {[%clk 0:02:11]}  Bh6 {[%clk 0:02:33]} 17. Bb5+ {[%clk 0:01:59]}  Kf8 {[%clk 0:02:34]} 18. Rc7 {[%clk 0:01:50]}  Kg7 {[%clk 0:02:22]} 19. Ke2 {[%clk 0:01:33]}  Rac8 {[%clk 0:02:17]} 20. Rhc1 {[%clk 0:01:33]}  Bg4+ {[%clk 0:02:08]} 21. f3 {[%clk 0:01:32]}  exf3+ {[%clk 0:02:06]} 22. gxf3 {[%clk 0:01:32]}  Bxd2 {[%clk 0:01:20]} 23. Kxd2 {[%clk 0:00:57]}  Rxc7 {[%clk 0:01:18]} 24. Rxc7 {[%clk 0:00:57]}  Bxf3 {[%clk 0:01:18]} 25. Rxe7 {[%clk 0:00:57]}  f5 {[%clk 0:01:18]} 26. Bc4 {[%clk 0:00:55]}  Rf8 {[%clk 0:01:18]} 27. Ke3 {[%clk 0:00:51]}  Kf6 {[%clk 0:01:15]} 28. Rc7 {[%clk 0:00:49]}  Bh1 {[%clk 0:01:08]} 29. d5 {[%clk 0:00:46]}  Re8+ {[%clk 0:01:07]} 30. Kd4 {[%clk 0:00:45]}  Re4+ {[%clk 0:01:06]} 31. Kc5 {[%clk 0:00:44]}  f4 {[%clk 0:01:02]} 32. d6 {[%clk 0:00:41]}  Rxc4+ {[%clk 0:00:36]} 33. Kxc4 {[%clk 0:00:39]}  f3 {[%clk 0:00:36]} 34. Kd3 {[%clk 0:00:36]}  Bg2 {[%clk 0:00:33]} 35. Ke3 {[%clk 0:00:33]}  b5 {[%clk 0:00:32]} 36. Re7 {[%clk 0:00:24]}  h5 {[%clk 0:00:29]} 37. Kf2 {[%clk 0:00:23]}  h4 {[%clk 0:00:16]} 38. Re3 {[%clk 0:00:22]} 1-0


[Site "https://www.chess.com"]

[Event "Titled Tuesday Blitz July 4 Early 2023"]
[White "Sanhueza, Cristian"]
[Black "Nan M K Khine Hlyan"]
[WhiteFideId "116815"]
[BlackFideId "13002899"]
[WhiteElo "2454"]
[BlackElo "1766"]
[Result "1-0"]
[Round "6"]
[TimeControl "180+2"]
[Date "2023.07.04"]
[WhiteClock "0:00:51"]
[BlackClock "0:00:24"]
[Board "165"]

1. e4 {[%clk 0:03:00]}  e5 {[%clk 0:02:57]} 2. Nf3 {[%clk 0:03:00]}  Nc6 {[%clk 0:02:54]} 3. Bc4 {[%clk 0:03:00]}  Bc5 {[%clk 0:02:41]} 4. c3 {[%clk 0:02:59]}  Nf6 {[%clk 0:02:40]} 5. d4 {[%clk 0:02:56]}  exd4 {[%clk 0:02:40]} 6. cxd4 {[%clk 0:02:57]}  Bb4+ {[%clk 0:02:40]} 7. Nc3 {[%clk 0:02:58]}  Nxe4 {[%clk 0:02:38]} 8. O-O {[%clk 0:02:58]}  Bxc3 {[%clk 0:02:34]} 9. d5 {[%clk 0:02:57]}  Ne7 {[%clk 0:02:32]} 10. bxc3 {[%clk 0:02:55]}  Nd6 {[%clk 0:02:11]} 11. Qd4 {[%clk 0:02:42]}  O-O {[%clk 0:01:59]} 12. Bd3 {[%clk 0:02:34]}  Ng6 {[%clk 0:01:54]} 13. Re1 {[%clk 0:02:27]}  Re8 {[%clk 0:01:45]} 14. Bd2 {[%clk 0:02:15]}  b6 {[%clk 0:01:36]} 15. h4 {[%clk 0:02:14]}  Bb7 {[%clk 0:01:35]} 16. h5 {[%clk 0:02:11]}  Nf8 {[%clk 0:01:18]} 17. h6 {[%clk 0:02:06]}  Qf6 {[%clk 0:00:57]} 18. hxg7 {[%clk 0:01:55]}  Qxg7 {[%clk 0:00:54]} 19. c4 {[%clk 0:01:17]}  Ng6 {[%clk 0:00:52]} 20. Qg4 {[%clk 0:01:10]}  Rxe1+ {[%clk 0:00:45]} 21. Rxe1 {[%clk 0:01:09]}  Re8 {[%clk 0:00:44]} 22. Rxe8+ {[%clk 0:01:04]}  Nxe8 {[%clk 0:00:42]} 23. Qxd7 {[%clk 0:01:05]}  Nd6 {[%clk 0:00:32]} 24. Qxc7 {[%clk 0:01:00]}  Ne5 {[%clk 0:00:29]} 25. Qd8+ {[%clk 0:00:53]}  Qf8 {[%clk 0:00:23]} 26. Qxf8+ {[%clk 0:00:53]}  Kxf8 {[%clk 0:00:24]} 27. Nxe5 {[%clk 0:00:51]}  Ke7 {[%clk 0:00:24]} 1-0


[Site "https://www.chess.com"]

[Event "Titled Tuesday Blitz July 4 Early 2023"]
[White "Shuvalov, Evgenij"]
[Black "Petrova, Irina"]
[WhiteFideId "4187237"]
[BlackFideId "14124122"]
[WhiteElo "2509"]
[BlackElo "2358"]
[Result "1-0"]
[Round "6"]
[TimeControl "180+2"]
[Date "2023.07.04"]
[WhiteClock "0:00:16"]
[BlackClock "0:00:00"]
[Board "167"]

1. d4 {[%clk 0:03:00]}  d6 {[%clk 0:02:59]} 2. Nf3 {[%clk 0:03:00]}  g6 {[%clk 0:03:00]} 3. c4 {[%clk 0:03:00]}  Bg7 {[%clk 0:03:00]} 4. Nc3 {[%clk 0:03:00]}  Nc6 {[%clk 0:02:59]} 5. h3 {[%clk 0:02:57]}  e5 {[%clk 0:02:56]} 6. d5 {[%clk 0:02:55]}  Nce7 {[%clk 0:02:56]} 7. e4 {[%clk 0:02:53]}  f5 {[%clk 0:02:44]} 8. Bd3 {[%clk 0:02:44]}  Nf6 {[%clk 0:02:43]} 9. O-O {[%clk 0:02:42]}  O-O {[%clk 0:02:43]} 10. Re1 {[%clk 0:02:41]}  f4 {[%clk 0:02:30]} 11. c5 {[%clk 0:02:38]}  h6 {[%clk 0:02:28]} 12. cxd6 {[%clk 0:02:12]}  cxd6 {[%clk 0:02:27]} 13. Nd2 {[%clk 0:02:06]}  g5 {[%clk 0:02:22]} 14. Be2 {[%clk 0:02:06]}  Ng6 {[%clk 0:02:16]} 15. a4 {[%clk 0:02:02]}  a6 {[%clk 0:02:09]} 16. a5 {[%clk 0:02:01]}  Nh4 {[%clk 0:02:01]} 17. Nc4 {[%clk 0:01:50]}  f3 {[%clk 0:01:54]} 18. Bxf3 {[%clk 0:01:44]}  Nxf3+ {[%clk 0:01:53]} 19. Qxf3 {[%clk 0:01:38]}  Nxd5 {[%clk 0:01:29]} 20. Qd1 {[%clk 0:01:36]}  Nxc3 {[%clk 0:01:25]} 21. bxc3 {[%clk 0:01:37]}  Be6 {[%clk 0:01:14]} 22. Nb6 {[%clk 0:01:31]}  Rb8 {[%clk 0:01:03]} 23. Ba3 {[%clk 0:01:27]}  Qf6 {[%clk 0:00:53]} 24. Re2 {[%clk 0:01:21]}  Rbd8 {[%clk 0:00:51]} 25. Rd2 {[%clk 0:01:21]}  Qf4 {[%clk 0:00:38]} 26. Qe2 {[%clk 0:01:14]}  g4 {[%clk 0:00:36]} 27. g3 {[%clk 0:01:04]}  Qf6 {[%clk 0:00:20]} 28. h4 {[%clk 0:01:00]}  Bc8 {[%clk 0:00:17]} 29. Rad1 {[%clk 0:00:57]}  Rf7 {[%clk 0:00:13]} 30. Rxd6 {[%clk 0:00:52]}  Rxd6 {[%clk 0:00:12]} 31. Rxd6 {[%clk 0:00:53]}  Qe7 {[%clk 0:00:09]} 32. Nxc8 {[%clk 0:00:51]}  Qc7 {[%clk 0:00:09]} 33. Nb6 {[%clk 0:00:48]}  Qxc3 {[%clk 0:00:09]} 34. Rd3 {[%clk 0:00:26]}  Qxa5 {[%clk 0:00:09]} 35. Bc5 {[%clk 0:00:25]}  Qa1+ {[%clk 0:00:07]} 36. Kg2 {[%clk 0:00:23]}  Rc7 {[%clk 0:00:07]} 37. Be3 {[%clk 0:00:21]}  a5 {[%clk 0:00:06]} 38. Nd5 {[%clk 0:00:19]}  Rf7 {[%clk 0:00:06]} 39. Qxg4 {[%clk 0:00:18]}  Qb1 {[%clk 0:00:06]} 40. Rd2 {[%clk 0:00:18]}  a4 {[%clk 0:00:06]} 41. Bxh6 {[%clk 0:00:16]}  a3 {[%clk 0:00:04]} 42. Nf6+ {[%clk 0:00:16]}  Kf8 {[%clk 0:00:04]} 43. Bxg7+ {[%clk 0:00:15]}  Rxg7 {[%clk 0:00:04]} 44. Rd8+ {[%clk 0:00:15]}  Ke7 {[%clk 0:00:00]} 45. Rd7+ {[%clk 0:00:16]} 1-0


[Site "https://www.chess.com"]